Cogmind - Beta 16.1 @@@ ROGUE MODE // 2026.04.22 @ 00:03:18 Player: mephiles96 Result: Destroyed by EY-9Q0(R) with Subdweller Machine Gun Performance ------------- Evolutions (0) 0 Regions Visited (2) 400 Robots Destroyed (19) 95 Value Destroyed (359) 359 Prototype IDs (0) 0 Alien Tech Used (0) 0 Bonus (0) 0 TOTAL SCORE: 854 Bonus ------- None Cogmind --------- Core Integrity 0/250 Matter 300/300 Energy 100/100 System Corruption 1% Temperature Cool (0) Movement Core (1400) Ox27 Location -10/Subcaves Parts ------- > --- POWER (1) -------- (None) > --- PROPULSION (2) --- (None) > --- UTILITY (2) ------ Huge Storage Unit Targeting Computer > --- WEAPON (2) ------- Assault Rifle > --- INVENTORY (25) --- Light Treads Light Treads Wheel Structural Scanner Machine Analyzer Sensor Array Improved Terrain Scanner Seismic Detector Light Armor Plating Light Armor Plating Peak State ------------ > --- POWER ------------ Ion Engine > --- PROPULSION ------- Light Treads Light Treads > --- UTILITY ---------- Small Storage Unit Seismic Detector > --- WEAPON ----------- Assault Rifle Assault Rifle > --- INVENTORY -------- Light Ion Engine Aluminum Leg Aluminum Leg Wheel Compact Wheel Improved Terrain Scanner Targeting Computer Small Laser [Rating: 8] Favorites ----------- Power Ion Engine Engine Ion Engine Propulsion Light Treads Treads Light Treads Wheel Wheel Utility Targeting Computer Device Seismic Detector Storage Huge Storage Unit Processor Targeting Computer Weapon Assault Rifle Ballistic Gun Assault Rifle Launcher Grenade Launcher Build | -11 -10 -10 ------- Run | Yrd Mat Sub Slots Evolved . | . . . Power . | . . . Propulsion . | . . . Utility . | . . . Weapon . | . . . Parts Attached 14 | 7 5 2 Power 1 | 1 . . Engine 1 | 1 . . Core . | . . . Reactor . | . . . Propulsion 5 | 2 1 2 Treads 4 | 2 1 1 Leg . | . . . Wheel 1 | . . 1 Hover . | . . . Flight . | . . . Utility 4 | 2 2 . Device 1 | 1 . . Storage 2 | 1 1 . Processor 1 | . 1 . Hackware . | . . . Protection . | . . . Artifact . | . . . Weapon 4 | 2 2 . Energy Gun . | . . . Energy Cannon . | . . . Ballistic Gun 2 | 2 . . Ballistic Cannon . | . . . Launcher 2 | . 2 . Special Weapon . | . . . Impact Weapon . | . . . Slashing Weapon . | . . . Piercing Weapon . | . . . Special Melee Weapon . | . . . Unidentified Prototypes . | . . . Parts Lost 5 | . . 5 Power 1 | . . 1 Propulsion 2 | . . 2 Utility . | . . . Weapon 2 | . . 2 Highest Loss Streak 2 | . . 2 To Critical Strikes . | . . . Average Backups 8 | 4 7 9 Power . | . . . Propulsion 2 | 3 2 3 Utility 4 | . 3 6 Weapon . | . 1 . Tool/Special . | . . . Unused Backups 12 | . 6 6 Power 1 | . 1 . Propulsion 4 | . 4 . Utility 6 | . . 6 Weapon 1 | . 1 . Tool/Special . | . . . Average Slot Usage (%) 97 | . 100 93 Engine 12 | . 14 10 Treads 27 | . 28 26 Device 1 | . 2 . Storage 14 | . 14 14 Processor 12 | . 11 14 Ballistic Gun 17 | . 19 15 Launcher 9 | . 8 9 Peak Build Rating 8 | 7 8 8 Average Rating 7 | 4 7 7 On Entrance 5 | . 7 8 Avg Prop Armor Cover (%) 11 | . . 11 Naked Turns . | . . . Heaviest Build 90 | 15 90 90 Greatest Support 40 | 40 40 40 Greatest Overweight (x) 8 | . 2 8 Average Overweight (x) 1 | . . 3 Largest Inventory Capacity 25 | 8 25 25 Average Capacity 16 | 6 12 25 Most Carried 10 | 7 10 10 Average Carried 8 | 5 7 9 Final Capacity 25 | 8 25 25 Final Carried 10 | 7 10 10 Class Distribution -------------------- 100% | Mutant Dominant Class ---------------- Mutant | -10/Materials Mutant | -10/Subcaves Resources | -11 -10 -10 ----------- Run | Yrd Mat Sub Matter Collected 743 | 306 263 174 Remotely . | . . . Salvage Created 581 | 138 372 71 Parts 36 | 9 26 1 Haulers Intercepted 2 | . 2 . Recyclers Shooed . | . . . Parts Field Recycled . | . . . Retrieved Matter . | . . . Parts Self-Destructed 9 | . . 9 Prevented . | . . . Parts Restored . | . . . Kills | -11 -10 -10 ------- Run | Yrd Mat Sub Combat Hostiles Destroyed 12 | . 9 3 Guns 9 | . 8 1 AOE 3 | . 1 2 Classes Destroyed 8 | 2 4 2 Builder 2 | . 2 . Tunneler 2 | 2 . . Hauler 2 | . 2 . Recycler 1 | 1 . . Swarmer 6 | . 6 . Grunt 3 | . 3 . Sentry 2 | . . 2 Subdweller 1 | . . 1 Best Kill Streak 5 | 3 5 2 Combat Bots Only 4 | . 4 2 Max Kills in Single Turn 1 | 1 1 1 Gunslinging . | . . . Exploded 1 | . 1 1 Melee . | . . . Uniques/NPCs Destroyed . | . . . Combat | -11 -10 -10 -------- Run | Yrd Mat Sub Hostile Shots Fired 88 | . 42 46 Missed 22 | . 12 10 Hits 66 | . 30 36 Projectile 66 | . 30 36 Critical Strikes 1 | . . 1 Damage Taken 1051 | . 377 674 Core 250 | . 37 213 Absorbed by Shields . | . . . Core Remaining (%) 100 | 100 . . Volleys Fired 65 | 6 43 16 Largest 2 | 2 2 2 Hottest 50 | 40 50 50 Shots Fired 102 | 12 64 26 Gun 89 | 12 62 15 Cannon . | . . . Launcher 13 | . 2 11 Special . | . . . Kinetic 89 | 12 62 15 Thermal . | . . . Explosive 13 | . 2 11 Electromagnetic . | . . . Robot Hit Streak 17 | 10 12 17 Robot Miss Streak 4 | . 4 1 Penetration Max . | . . . Secondary Targets . | . . . Shots Hit Robots 63 | 10 40 13 Core Hits 31 | 3 21 7 Critical Kills 1 | . 1 . Critical Parts Destroyed 1 | . 1 . Critical Strikes 2 | . 2 . Destroy 2 | . 2 . Melee Attacks . | . . . Impact . | . . . Slashing . | . . . Piercing . | . . . Sneak Attacks . | . . . Combat Hostiles . | . . . Follow-up Attacks . | . . . Damage Inflicted 1046 | 132 670 244 Guns 766 | 132 535 99 Cannons . | . . . Explosions 279 | . 135 144 Melee . | . . . Ramming 1 | . . 1 Kinetic 766 | 132 535 99 Thermal . | . . . Explosive 279 | . 135 144 Electromagnetic . | . . . Impact . | . . . Slashing . | . . . Piercing . | . . . Highest Corruption 1 | . 1 1 Average Corruption 1 | . 1 1 Corruption Purged . | . . . Corruption Blocked . | . . . Effects 13 | . 5 8 Message Errors 3 | . 1 2 Matter Fused 2 | . 1 1 Heat Flow Errors 1 | . 1 . Energy Discharges 2 | . . 2 Data Loss (minor) 2 | . . 2 Data Loss (major) 2 | . 2 . Weapon Failures 1 | . . 1 Overload Shots . | . . . Overflow Damage . | . . . Projectiles . | . . . Explosions . | . . . Melee . | . . . Knockbacks . | . . . Impact . | . . . Kinetic . | . . . Secondary . | . . . Self-Inflicted Damage 69 | . 21 48 Shots 4 | . 1 3 Rammed 2 | . . 2 Targets Rammed 2 | . . 2 Kicked . | . . . Crushed . | . . . Highest Temperature 163 | . 163 . Average Temperature 64 | . 64 . Received Heat Transfer 234 | . 60 174 Siege Activations . | . . . Martial Activations . | . . . Shielding Activations . | . . . Robots Disrupted . | . . . Combat Hostiles . | . . . Robots Corrupted . | . . . Combat Hostiles . | . . . Parts Fried . | . . . Impact Corruptions . | . . . Robots Melted . | . . . Combat Hostiles . | . . . Parts Melted . | . . . Heat Transferred . | . . . Parts Sabotaged . | . . . Parts Stolen . | . . . Parts Stripped . | . . . Power Chain Reactions . | . . . Alert | -11 -10 -10 ------- Run | Yrd Mat Sub Maximum Alert Level . | . . . Low Security (%) 100 | 100 100 . Level 1 . | . . . Level 2 . | . . . Level 3 . | . . . Level 4 . | . . . Level 5 . | . . . High Security . | . . . Max Security . | . . . Peak Influence 117 | 15 117 . Initial . | . . . Average 19 | 2 20 . Influence Increases 400 | 15 330 55 Destroy 0b10 Robot/C 220 | . 180 40 Destroy 0b10 Robot/NC 35 | 15 20 . Destroy Leader 44 | . 44 . Successful Hack 12 | . 12 . Disable Machine 30 | . 30 . Destroy Structure 14 | . 14 . Lose Combat Pursuer 45 | . 30 15 Influence Decreases 400 | 15 314 71 Entered New Map 8 | . . 8 Time Decay 321 | 15 243 63 Purge Threat 71 | . 71 . Squads Dispatched 1 | . 1 . Investigation 1 | . 1 . Extermination . | . . . Reinforcement . | . . . Assault . | . . . Garrison . | . . . Intercept . | . . . Searches Triggered . | . . . Construction Impeded . | . . . Haulers Reinforced . | . . . Active Scanning Responses . | . . . Cargo Convoy Interrupts . | . . . Stealth | -11 -10 -10 --------- Run | Yrd Mat Sub Distress Signals 1 | . 1 . Communications Jammed . | . . . Distress Signals . | . . . Times Spotted 29 | . 23 6 Peak Tracking Total 5 | . 5 2 Tactical Retreats 3 | . 2 1 Traps | -11 -10 -10 ------- Run | Yrd Mat Sub Traps Triggered 4 | . 4 . Indirectly . | . . . Trap Hack Attempts . | . . . Triggered . | . . . Disarmed . | . . . Reprogrammed . | . . . Reused . | . . . Traps Extracted . | . . . Installed . | . . . Triggered . | . . . Machines | -11 -10 -10 ---------- Run | Yrd Mat Sub Machines Disabled 2 | . 2 . Max in Single Turn 1 | . 1 . Machines Repaired . | . . . Machines Dismantled . | . . . Machines Sabotaged . | . . . Overloaded Fab Kills . | . . . Hacking | -11 -10 -10 --------- Run | Yrd Mat Sub Machines Accessed 4 | . 4 . Terminals 4 | . 4 . Fabricators . | . . . Repair Stations . | . . . Recycling Units . | . . . Scanalyzers . | . . . Garrison Access . | . . . Total Hacks 13 | . 13 . Successful 4 | . 4 . Failed 8 | . 8 . Catastrophic . | . . . Database Lockouts 1 | . 1 . Manual 9 | . 9 . Terminals 13 | . 13 . Fabricators . | . . . Repair Stations . | . . . Recycling Units . | . . . Scanalyzers . | . . . Garrison Access . | . . . Terminal Hacks 4 | . 4 . Robot Analysis 1 | . 1 . Unreport Threat 1 | . 1 . Disarm Traps 1 | . 1 . Hauler Manifests 1 | . 1 . Fabricator Hacks . | . . . Repair Station Hacks . | . . . Recycling Unit Hacks . | . . . Scanalyzer . | . . . Garrison Access Hacks . | . . . Unauthorized Hacks . | . . . Terminals . | . . . Fabricators . | . . . Repair Stations . | . . . Recycling Units . | . . . Scanalyzers . | . . . Garrison Access . | . . . Data Cores Recovered . | . . . Used . | . . . Hacking Detections 2 | . 2 . Full Trace Events . | . . . Feedback Events . | . . . Feedback Blocked . | . . . Robot Schematics Acquired . | . . . Robots Built . | . . . Authchips . | . . . Time . | . . . Total Robot Build Rating . | . . . Part Schematics Acquired . | . . . Parts Built . | . . . Authchips . | . . . Time . | . . . Total Part Build Rating . | . . . Part Studies Acquired . | . . . Parts Repaired . | . . . Time . | . . . Parts Recycled . | . . . Recycled Matter . | . . . Retrieved Matter . | . . . Retrieved Components . | . . . Parts Scanalyzed . | . . . Part Schematics Acquired . | . . . Parts Damaged . | . . . Bothacking | -11 -10 -10 ------------ Run | Yrd Mat Sub Used RIF Installer . | . . . Robots Hacked . | . . . Non-combat . | . . . Combat . | . . . Robot Hacks Applied . | . . . Relay Couplers Released . | . . . Fabnet Peak Effective % . | . . . Robots Rewired . | . . . Allies Hacked . | . . . Hacks Repelled . | . . . Allies | -11 -10 -10 -------- Run | Yrd Mat Sub Total Allies . | . . . Largest Group . | . . . Highest-Rated Group . | . . . Highest-Rated Ally . | . . . Total Orders . | . . . Ally Attacks . | . . . Total Damage . | . . . Kills . | . . . Allies Corrupted . | . . . Allies Melted . | . . . Intel | -11 -10 -10 ------- Run | Yrd Mat Sub Active Infowar (turns) 278 | 30 248 . Seismic 278 | 30 248 . Robot Analysis Total 1 | . 1 . Derelict Logs Recovered . | . . . Drone Launches . | . . . Drone Recoveries . | . . . Exploration | -11 -10 -10 ------------- Run | Yrd Mat Sub Turns Passed 2444 | 119 1400 925 Spaces Moved 1019 | 56 675 288 Core 6 | 6 . . Treads 963 | 50 675 238 Legs . | . . . Wheels 50 | . . 50 Hover . | . . . Flight . | . . . Fastest Speed 50 | 50 160 200 Average Speed 214 | 148 184 299 Slowest Speed 320 | 160 320 320 Overloaded Moves . | . . . Propulsion Burnouts . | . . . Robots Hopped . | . . . Potential Cave-ins . | . . . Cave-ins Triggered . | . . . Exploration Rate (%) 40 | 3 99 18 Regions Visited 2 Branch Regions 1 Pre-discovered Areas . | . . . Known Exits Taken . | . . . Unknown Exits Taken 2 | 1 1 . Scrap Searched . | . . . Spaces Dug 9 | . . 9 Terrain Destroyed 58 | . 11 47 Melee . | . . . Projectile . | . . . AOE 58 | . 11 47 Terrain Rammed . | . . . Walls Destroyed . | . . . Machines Disabled . | . . . Actions | -11 -10 -10 --------- Run | Yrd Mat Sub Total 1171 | 77 775 319 Wait 34 | . 29 5 Move 1017 | 55 674 288 Hop . | . . . Pick Up 21 | 8 12 1 Fast Attach 7 | 7 . . Attach 1 | . . 1 Detach . | . . . Swap 8 | . 5 3 Drop 13 | 1 12 . Fire 65 | 6 43 16 Melee . | . . . Ram 1 | . . 1 Kick . | . . . Crush 1 | . . 1 Escape Stasis . | . . . Rewire 3 | . . 3 Trap . | . . . Miscellaneous . | . . . Route ------- -11/Scrapyard -10/Materials (discovered 6 exits: [*Mat x3] / [*Min x2] / [*Sub]) -10/Subcaves (discovered 1 exit: [*Mat]) History --------- Turn | Location | Event 6 | -11/Scrapyard | Discovered new exit (range 14) 120 | -11/Scrapyard | Entered Materials 301 | -10/Materials | Build established: Mutant 305 | -10/Materials | Central database locked down 492 | -10/Materials | Discovered new exit (range 13) 753 | -10/Materials | Discovered new exit (range 16) 910 | -10/Materials | Discovered new exit (range 15) 997 | -10/Materials | Discovered new exit (range 10) 1008 | -10/Materials | Discovered new exit (range 16) 1087 | -10/Materials | Discovered new exit (range 6) 1520 | -10/Materials | Entered Subcaves 1521 | -10/Subcaves | Approached by a straggling Scientist 1537 | -10/Subcaves | Discovered new exit (range 15) 1631 | -10/Subcaves | A swath of the cavern ceiling suddenly collapsed 2235 | -10/Subcaves | Core integrity fell below 50% 2286 | -10/Subcaves | Shifting Twisted Machinery released Mak. Light Armor Plating 2434 | -10/Subcaves | Core integrity fell below 20% 2445 | -10/Subcaves | Destroyed by EY-9Q0(R) with Subdweller Machine Gun Last Messages --------------- 02193_ Attempting to rewire 6L-QDF(R). 02193_ 6L-QDF(R) is broken beyond repair. 02194_ Attempting to rewire 6L-QDF(R). 02194_ 6L-QDF(R) is broken beyond repair. 02195_ Attempting to rewire 6L-QDF(R). 02195_ 6L-QDF(R) is broken beyond repair. 02216_ System corrupted: Energy discharge (-67). 02231_ Ion Engine destroyed. 02237_ Grenade Launcher destroyed. 02239_ System corrupted: Matter fused (-9). 02246_ Critical hit (Burn: +37). 02248_ Y-45 Defender destroyed. 02249_ Subatomizers dissect the Heat Sink. 02254_ Heat Sink fries itself beyond repair. 02260_ Acquired 48 matter. Mak. Light Armor Plating falls loose from the Twisted Machinery. 02440_ Slammed into EY-9Q0(R). 02440_ Lgt. Treads destroyed. 02443_ Slammed into NY-C78(R). Map ----- +----------------------------------------------------+ | ?????????????????????????????????????????????????? | | ?????????????????????????????????????????????????? | | ?????????????????????????????????????????????????? | | ?????????????????????????????????????????????????? | | ?????????????????????????????????????????????????? | | ?????????????????????????????????????????????????? | | ?????????????????????????????????????????????????? | | ?????????????????????????????????????????????????? | | ?????????????????????????????????????????????????? | | ?????????????????????????????????????????????????? | | ?????????????????????????????????????????????????? | | ?????????????????????????????????????????????????? | | ?????????????????????????????????????????????????? | | ????????????????####?????????????????????????????? | | ?????????????? ?????????????????????????????? | | ?????????????? ????????????????????????????? | | ????????????? ????????????????????????????? | | ????????????? ???????????????????????????? | | ????????????? ???????????????????????????? | | ?????????????? ??????????????????????????? | | ???????????????? ??????????????????????????? | | ?????????????????# ?????????????????????????? | | ??????????????????# ????????????????###??????? | | ???????????????????# ????###?####??## ###????? | | ????????????????????# ##### ### #### ""#????? | | ??????????????????????# R@ ""##???? | | ??????????????????????# R# # # # ## """#???? | | ??????????????????????# ################ """#???? | | ????????????????????? ???????????????# ""##???# | | ????????????????????# ????????????#### ##???## | | ???????????????????# ????????????# #??### | | ??????????????????# ??????????##### #?## | | ????????????????? ?????????## ### "### | | ???????????????? ?????????# ""! | | ??????????????? ?????????## | | ?????????????? ## ???????????## | | ?????????????? ??# #????????????# ####### | | ?????????????????# ?????????????# #####?????? | | ??????????????????# ?????????????#####?????????? | | ?????????????????????????????????????????????????? | | ?????????????????????????????????????????????????? | | ?????????????????????????????????????????????????? | | ?????????????????????????????????????????????????? | | ?????????????????????????????????????????????????? | | ?????????????????????????????????????????????????? | | ?????????????????????????????????????????????????? | | ?????????????????????????????????????????????????? | | ?????????????????????????????????????????????????? | | ?????????????????????????????????????????????????? | | ?????????????????????????????????????????????????? | +----------------------------------------------------+ Best States ------------- Heat Dissipation 25 Energy Generation 10 Energy Capacity 250 Matter Stores 300 Matter Capacity 300 Sight Range 16 Terrain Scan Density 10 Evasion (%) 40 Targeting Accuracy 5 Recoil Reduction 2 Item Schematics ----------------- None Robot Schematics ------------------ None Fabricated ------------ Nothing Repaired ---------- Nothing Studied --------- None Alien Tech Used ----------------- None Achievements -------------- None Challenges ------------ None Game ------ Seed ElectrostormSmallBox Manual? 0 Play Time 00:15:44 Cumulative 56.5 hours Start 2026.04.21 @ 23:50:39 End 2026.04.22 @ 00:03:18 Sessions 1 Manual Loads 0 Difficulty Rogue Special Mode None Game No. 69 Rogue 69 Adventurer 0 Explorer 0 Win Type - Total 1 Types 1/0/0/0/0/0/0/0/0/0 Lore% 27 Gallery% 35 Achievement% 29 Wizard Run 0 Options --------- Layout 2 ASCII 0 Keyboard 1 Movement Numpad Keybinds 1 Fullscreen 1 Font 24/Smallcaps Map View 50x44 Zoom Use 0% Tactical HUD 1 Map Filters NONE Filters NONE Steam 1 RUN: 4d532068-abd4-4eff-8b0f-a8c8d2fec077